bitfinex-derivatives/quotes_BTCF0:USTF0_20250704
["timestamp","ask_amount","ask_price","bid_price","bid_amount"]
[1751613515385,1.21846742,108900.0,108890.0,0.2079613]
[1751613515583,0.96804877,108900.0,108890.0,0.2079613]
[1751613515884,0.60898634,108900.0,108890.0,0.2079613]
[1751613516083,0.92898634,108900.0,108890.0,0.2079613]
[1751613516387,0.92898634,108900.0,108890.0,0.22215148]
[1751613517280,1.17940499,108900.0,108890.0,0.22215148]
[1751613517975,1.17940499,108900.0,108890.0,0.22216626]
[1751613518179,0.92898634,108900.0,108890.0,0.22216626]
[1751613518382,1.17940499,108900.0,108890.0,0.22216626]
[1751613519288,0.92898634,108900.0,108890.0,0.22216626]
[1751613519490,1.17343448,108900.0,108890.0,0.22216626]
[1751613520593,1.17343448,108900.0,108890.0,0.21216626]
[1751613521989,1.17392792,108900.0,108890.0,0.21216626]
[1751613523388,1.17392792,108900.0,108890.0,0.02855716]
[1751613523389,1.44341895,108900.0,108890.0,0.02855716]
[1751613523599,1.1930003,108900.0,108890.0,0.21216626]
[1751613524178,1.1930003,108900.0,108890.0,0.19781406]
[1751613524488,2.0485203,108900.0,108890.0,0.1977788]
[1751613526290,2.29893895,108900.0,108890.0,0.1977788]
[1751613526494,2.0485203,108900.0,108890.0,0.1977788]
[1751613526787,0.1836091,108890.0,108880.0,0.35788499]
[1751613526989,1.21022775,108890.0,108880.0,0.35788499]
[1751613527389,0.9598091,108890.0,108880.0,0.35788499]
[1751613527892,1.21022775,108890.0,108880.0,0.26607319]
[1751613528190,1.21222775,108890.0,108880.0,0.26607319]
[1751613528585,1.21222775,108890.0,108880.0,0.2295168]
[1751613528785,0.9618091,108890.0,108880.0,0.2295168]
[1751613529088,1.21222775,108890.0,108880.0,0.2295168]
[1751613529491,1.21222775,108890.0,108880.0,0.26607319]
[1751613530186,1.21222775,108890.0,108880.0,0.2295168]
[1751613530387,1.21222775,108890.0,108880.0,0.26607319]
[1751613531884,1.21322775,108890.0,108880.0,0.2295168]
[1751613532086,1.21322775,108890.0,108880.0,0.1836115]
[1751613532287,1.21322775,108890.0,108880.0,0.22016789]
[1751613532887,0.9628091,108890.0,108880.0,0.03655639]
[1751613533092,1.21322775,108890.0,108880.0,0.03655639]
[1751613533690,0.183626,108880.0,108870.0,0.24031436]
[1751613533889,2.01176732,108880.0,108870.0,0.24031436]
[1751613534782,2.01376732,108880.0,108870.0,0.24031436]
[1751613535690,1.76334867,108880.0,108870.0,0.24031436]
[1751613536292,2.01476732,108880.0,108870.0,0.24031436]
[1751613536589,2.03636372,108880.0,108870.0,0.24031436]
[1751613537294,1.78594507,108880.0,108870.0,0.24031436]
[1751613537494,2.03636372,108880.0,108870.0,0.24031436]
[1751613538392,2.01476732,108880.0,108870.0,0.24031436]
[1751613538599,2.01476732,108880.0,108870.0,0.25414319]
[1751613540294,2.01476732,108880.0,108870.0,0.07050039]
[1751613540494,2.03635264,108880.0,108870.0,0.1993086]
[1751613540887,2.03635264,108880.0,108870.0,0.0156658]
[1751613541487,2.03635264,108880.0,108870.0,0.01584431]
[1751613541794,1.78593399,108880.0,108870.0,0.01584431]
[1751613541992,1.78593399,108880.0,108870.0,0.19948711]
[1751613542187,2.03635264,108880.0,108870.0,0.19948711]
[1751613542589,2.03635264,108880.0,108870.0,0.01584431]
[1751613542785,2.05585674,108880.0,108870.0,0.01584431]
[1751613543591,0.1836428,108870.0,108860.0,0.33030769]
[1751613543898,1.21876145,108870.0,108860.0,0.33030769]
[1751613544195,1.21876145,108870.0,108860.0,0.36110769]
[1751613544786,1.31860425,108870.0,108860.0,0.2754731]
[1751613545394,0.7073856,108870.0,108860.0,0.2754731]
[1751613545594,1.0681856,108870.0,108860.0,0.3062731]
[1751613545796,1.31860425,108870.0,108860.0,0.3062731]
[1751613546394,1.31860425,108870.0,108860.0,0.3376731]
[1751613547395,1.34930425,108870.0,108860.0,0.3376731]
[1751613547696,1.34929723,108870.0,108860.0,0.3376731]
[1751613549097,0.2755366,108850.0,108840.0,0.2755173]
[1751613549294,1.47177666,108850.0,108840.0,0.4170405]
[1751613549490,1.47177666,108850.0,108840.0,0.66745915]
[1751613549692,1.46375946,108850.0,108840.0,0.49015329]
[1751613550000,0.60907946,108850.0,108840.0,0.49015329]
[1751613550196,0.60907946,108850.0,108840.0,0.49917144]
[1751613550596,0.61107946,108850.0,108840.0,0.6764773]
[1751613551098,0.61107946,108850.0,108840.0,0.7314391]
[1751613551298,0.61107946,108850.0,108840.0,0.6764773]
[1751613551494,0.61207946,108850.0,108840.0,0.73144305]
[1751613551798,0.61207946,108850.0,108840.0,0.6764773]
[1751613552099,0.61007946,108850.0,108840.0,0.73144295]
[1751613552304,0.61107946,108850.0,108840.0,0.73144295]
[1751613552599,0.003,108850.0,108840.0,0.73144295]
[1751613552789,0.003,108850.0,108840.0,1.6126616]
[1751613552994,0.003,108850.0,108840.0,1.61265403]
[1751613553704,0.003,108850.0,108840.0,2.41201595]
[1751613553999,0.003,108850.0,108840.0,2.48512874]
[1751613554391,0.73102395,108870.0,108860.0,0.1836597]
[1751613554592,1.09102395,108870.0,108860.0,0.43407835]
[1751613554793,1.04510925,108870.0,108860.0,0.53077835]
[1751613554996,1.04510925,108870.0,108860.0,0.2803597]
[1751613554997,1.04560269,108870.0,108860.0,0.2803597]
[1751613555497,0.99968959,108870.0,108860.0,0.35426726]
[1751613555702,0.98222136,108870.0,108860.0,0.35426726]
[1751613555896,1.00161096,108870.0,108860.0,0.35426726]
[1751613556903,1.00361096,108870.0,108860.0,0.35626726]
[1751613557603,1.00361096,108870.0,108860.0,0.60668591]
[1751613558106,1.00361096,108870.0,108860.0,0.66164868]
[1751613558608,1.00361096,108870.0,108860.0,0.41123003]
[1751613558808,1.00361096,108870.0,108860.0,0.35123003]
[1751613559308,0.98422136,108870.0,108860.0,0.35123003]
[1751613559499,0.62342136,108870.0,108860.0,0.35123003]
[1751613559905,0.64238713,108870.0,108860.0,0.35123003]
[1751613560508,0.45873493,108870.0,108860.0,0.35123003]
[1751613560699,0.45873493,108870.0,108860.0,0.65164868]
[1751613560904,0.00449344,108870.0,108860.0,1.81748868]
[1751613561111,0.00449344,108870.0,108860.0,2.09173114]
[1751613561304,0.00449344,108870.0,108860.0,2.01861835]
[1751613561503,0.59491209,108870.0,108860.0,0.61978569]
[1751613561698,0.59491209,108870.0,108860.0,0.25428788]
[1751613561898,0.40909344,108870.0,108860.0,0.30428788]
[1751613562104,0.34449344,108870.0,108860.0,0.92360665]
[1751613562703,0.34449344,108870.0,108860.0,0.673188]
[1751613564311,0.34449344,108870.0,108860.0,0.643188]
[1751613564508,0.41812389,108870.0,108860.0,0.89360665]
[1751613564811,0.41812389,108870.0,108860.0,1.15360665]
[1751613567516,0.41812389,108870.0,108860.0,1.22693264]
[1751613568416,0.60176669,108870.0,108860.0,1.22693264]
[1751613568626,0.60176669,108870.0,108860.0,0.97651399]
[1751613568826,0.60176669,108870.0,108860.0,1.22693264]
[1751613569019,0.41812389,108870.0,108860.0,0.97651399]
[1751613569421,0.63456669,108870.0,108860.0,1.55067399]
[1751613569625,0.88498534,108870.0,108860.0,0.69651399]
[1751613569832,0.66756669,108870.0,108860.0,1.477268]
[1751613570027,0.66756669,108870.0,108860.0,0.623188]
[1751613570325,0.91798534,108870.0,108860.0,0.67819941]
[1751613570827,0.91798534,108870.0,108860.0,0.623188]
[1751613571028,0.91798534,108870.0,108860.0,0.64679941]
[1751613571421,0.91798534,108870.0,108860.0,0.61509941]
[1751613572025,0.91798534,108870.0,108860.0,0.25429941]
[1751613572230,1.27878534,108870.0,108860.0,0.25429941]
[1751613572623,1.52920399,108870.0,108860.0,0.07063971]
[1751613573531,1.55114193,108870.0,108860.0,0.0156283]
[1751613574033,1.73485394,108870.0,108860.0,0.0156283]
[1751613575127,0.1836766,108850.0,108840.0,0.33053561]
[1751613575324,1.98913525,108850.0,108840.0,0.33053561]
[1751613575525,2.05203525,108850.0,108840.0,0.33053561]
[1751613575720,1.8016166,108850.0,108840.0,0.33053561]
[1751613576034,2.05203525,108850.0,108840.0,0.33053561]
[1751613576526,2.05303525,108850.0,108840.0,0.2765242]
[1751613576831,2.05303525,108850.0,108840.0,0.184679]
[1751613577030,2.05303525,108850.0,108840.0,0.001]
[1751613577228,2.05503525,108850.0,108840.0,0.1846935]
[1751613578026,1.8046166,108850.0,108840.0,0.1846935]
[1751613578231,2.05503525,108850.0,108840.0,0.1846935]
[1751613578627,2.05575525,108850.0,108840.0,0.1846935]
[1751613578933,2.05571525,108850.0,108840.0,0.1846935]
[1751613580037,2.07777308,108850.0,108840.0,0.1846935]
[1751613581834,1.82735443,108850.0,108840.0,0.1846935]
[1751613582031,2.07777308,108850.0,108840.0,0.1846935]
[1751613584032,2.05571525,108850.0,108840.0,0.1846935]
[1751613585641,1.8052966,108850.0,108840.0,0.1846935]
[1751613585842,2.05571525,108850.0,108840.0,0.1846935]
[1751613587132,2.05571525,108850.0,108840.0,0.19884499]
[1751613588041,2.05528869,108850.0,108840.0,0.19884499]
[1751613589038,1.80487004,108850.0,108840.0,0.19884499]
[1751613589243,2.05528869,108850.0,108840.0,0.19884499]
[1751613594444,2.05528869,108850.0,108840.0,0.19884816]
[1751613596849,1.80487004,108850.0,108840.0,0.19884816]
[1751613597145,2.05528869,108850.0,108840.0,0.19884816]
[1751613601143,2.05528869,108850.0,108840.0,0.19884806]
[1751613601546,2.07448469,108850.0,108840.0,0.01515466]
[1751613601749,2.07448469,108850.0,108840.0,0.19884806]
[1751613602249,2.09656946,108850.0,108840.0,0.19884806]
[1751613602450,1.84615081,108850.0,108840.0,0.19884806]
[1751613603059,2.09656946,108850.0,108840.0,0.19884806]
[1751613603242,2.09656946,108850.0,108840.0,0.25387829]
[1751613603445,2.09656946,108850.0,108840.0,0.19884806]
[1751613603648,2.09656946,108850.0,108840.0,0.25387829]
[1751613604254,2.09656946,108850.0,108840.0,0.07018489]
[1751613605055,2.07737346,108850.0,108840.0,0.07018489]
[1751613605455,2.07737346,108850.0,108840.0,0.25387829]
[1751613605650,2.07737346,108850.0,108840.0,0.19884806]
[1751613605850,2.09620361,108850.0,108840.0,0.19884806]
[1751613606555,2.09620361,108850.0,108840.0,0.01515466]
[1751613606757,2.09620361,108850.0,108840.0,0.19884806]
[1751613606952,2.07737346,108850.0,108840.0,0.19884806]
[1751613607349,2.09689122,108850.0,108840.0,0.19884806]
[1751613611155,2.09682218,108850.0,108840.0,0.19884806]
[1751613611352,2.09682218,108850.0,108840.0,0.01515466]
[1751613611750,0.1836934,108840.0,108830.0,0.42651567]
[1751613611953,1.17969682,108840.0,108830.0,0.36335022]
[1751613612155,0.99477817,108840.0,108830.0,0.31742462]
[1751613612754,1.24519682,108840.0,108830.0,0.31742462]
[1751613613152,0.99777817,108840.0,108830.0,0.31842462]
[1751613613353,1.24819682,108840.0,108830.0,0.31842462]
[1751613613761,1.18269682,108840.0,108830.0,0.31842462]
[1751613613961,1.18269682,108840.0,108830.0,0.34942462]
[1751613614560,1.18272264,108840.0,108830.0,0.34942462]
[1751613614862,0.93230399,108840.0,108830.0,0.34942462]
[1751613615453,1.3822934,108840.0,108830.0,0.96064327]
[1751613615664,0.5166934,108840.0,108830.0,1.01064327]
[1751613615861,1.3820534,108840.0,108830.0,0.76022462]
[1751613616054,1.3820534,108840.0,108830.0,1.01064327]
[1751613616658,1.3820534,108840.0,108830.0,0.76022462]
[1751613616858,1.3820534,108840.0,108830.0,1.01064327]
[1751613618059,1.3820534,108840.0,108830.0,0.76022462]
[1751613618264,1.3820534,108840.0,108830.0,0.96064327]
[1751613618758,1.3820534,108840.0,108830.0,1.01064327]
[1751613619063,1.3820534,108840.0,108830.0,1.02064327]
[1751613619264,1.37607991,108840.0,108830.0,1.03898669]
[1751613619764,1.37607991,108840.0,108830.0,1.02070488]
[1751613620266,1.37607991,108840.0,108830.0,0.77028623]
[1751613620457,1.37607991,108840.0,108830.0,1.02070488]
[1751613620764,1.37607991,108840.0,108830.0,0.77028623]
[1751613621065,1.37657335,108840.0,108830.0,0.96561304]
[1751613621265,1.37657335,108840.0,108830.0,0.71519439]
[1751613621468,1.37657335,108840.0,108830.0,0.96561304]
[1751613621657,0.51121335,108840.0,108830.0,0.96561304]
[1751613621857,0.51121335,108840.0,108830.0,1.02070728]
[1751613622464,0.51121335,108840.0,108830.0,0.96561304]
[1751613623766,0.76199425,108840.0,108830.0,0.96597529]
[1751613624262,0.76199425,108840.0,108830.0,1.01107431]
[1751613624570,0.57830085,108840.0,108830.0,1.01107431]
[1751613624756,0.00349344,108840.0,108830.0,1.50185521]
[1751613625068,1.7523695,108860.0,108850.0,0.1836766]
[1751613625367,2.13448665,108860.0,108850.0,0.50391512]
[1751613625572,2.13448665,108860.0,108850.0,0.59851512]
[1751613625767,1.88370575,108860.0,108850.0,0.34773422]
[1751613626068,1.91400575,108860.0,108850.0,0.34773422]
[1751613626268,2.165701,108860.0,108850.0,0.34773422]
[1751613626861,2.165701,108860.0,108850.0,0.31663422]
[1751613627166,2.196001,108860.0,108850.0,0.26153675]
[1751613627563,2.196001,108860.0,108850.0,0.23133675]
[1751613627960,2.198001,108860.0,108850.0,0.23333675]
[1751613628164,1.08202575,108860.0,108850.0,0.23333675]
[1751613628364,2.197481,108860.0,108850.0,0.23333675]
[1751613629466,2.20674234,108860.0,108850.0,0.20003675]
[1751613630474,2.20674234,108860.0,108850.0,0.19961737]
[1751613632162,1.95604709,108860.0,108850.0,0.19961737]
[1751613632369,2.20674234,108860.0,108850.0,0.19961737]
[1751613633071,2.20673597,108860.0,108850.0,0.19961737]
[1751613634078,2.20673597,108860.0,108850.0,0.19961469]
[1751613634677,1.95604072,108860.0,108850.0,0.19961469]
[1751613634978,2.20673597,108860.0,108850.0,0.19961469]
[1751613637079,2.19747463,108860.0,108850.0,0.19961469]
[1751613638673,1.94677938,108860.0,108850.0,0.19961469]
[1751613638876,2.19747463,108860.0,108850.0,0.19961469]
[1751613640488,1.94677938,108860.0,108850.0,0.19961469]
[1751613640989,2.19747463,108860.0,108850.0,0.19961469]
[1751613641591,1.94677938,108860.0,108850.0,0.19961469]
[1751613641782,2.19747463,108860.0,108850.0,0.19961469]
[1751613642990,1.94677938,108860.0,108850.0,0.19961469]
[1751613643190,2.19747463,108860.0,108850.0,0.19961469]
[1751613644991,1.94677938,108860.0,108850.0,0.19961469]
[1751613645193,2.19747463,108860.0,108850.0,0.19961469]
[1751613646983,2.19747463,108860.0,108850.0,0.1856766]
[1751613647795,2.44828894,108860.0,108850.0,0.1856766]
[1751613648092,1.94677938,108860.0,108850.0,0.1856766]
[1751613648292,2.44828894,108860.0,108850.0,0.1856766]
[1751613649187,2.44828894,108860.0,108850.0,0.43643138]
[1751613649387,2.19753416,108860.0,108850.0,0.43643138]
[1751613649790,2.1974876,108860.0,108850.0,0.1856766]
[1751613650485,1.94677938,108860.0,108850.0,0.1856766]
[1751613650682,1.50620178,108860.0,108850.0,0.58328229]
[1751613650888,1.50620178,108860.0,108850.0,0.64428229]
[1751613652594,1.86700178,108860.0,108850.0,0.39357407]
[1751613653595,1.50620178,108860.0,108850.0,0.39357407]
[1751613655092,1.50620178,108860.0,108850.0,0.40294629]
[1751613655287,1.50620178,108860.0,108830.0,0.00183764]
[1751613655288,0.1836934,108840.0,108830.0,0.00183764]
[1751613655488,0.1837103,108830.0,108820.0,0.00559949]
[1751613655691,1.2585293,108830.0,108820.0,0.24442416]
[1751613655887,1.86862108,108830.0,108820.0,0.24442416]
[1751613656089,1.86854108,108830.0,108820.0,0.24442416]
[1751613656395,1.50774108,108830.0,108820.0,0.18932669]
[1751613656593,0.5637103,108830.0,108820.0,0.49513238]
[1751613656793,0.5637103,108830.0,108820.0,0.92093238]
[1751613657088,0.38,108830.0,108820.0,1.02492949]
[1751613657492,0.02000355,108840.0,108830.0,0.1837103]
[1751613657688,0.32900355,108840.0,108830.0,1.1723131]
[1751613658093,0.04900355,108840.0,108830.0,0.76160488]
[1751613658294,0.04900355,108840.0,108830.0,1.2523131]
[1751613658600,0.20298834,108850.0,108840.0,0.1836934]
[1751613658786,0.58298834,108850.0,108840.0,0.62673212]
[1751613659299,0.39929804,108850.0,108840.0,0.63605446]
[1751613659798,0.58297464,108850.0,108840.0,0.63605446]
[1751613659998,0.58497464,108850.0,108840.0,0.63605446]
[1751613660200,0.5656766,108850.0,108840.0,0.38534624]
[1751613660498,0.5656766,108850.0,108840.0,0.63605446]
[1751613660699,0.5666766,108850.0,108840.0,0.38534624]
[1751613661194,0.383,108850.0,108840.0,1.00685446]
[1751613663295,0.003,108850.0,108840.0,0.93685446]
[1751613663494,0.003,108850.0,108840.0,1.21685446]
[1751613664300,0.003,108850.0,108840.0,0.98685446]
[1751613664493,0.313,108850.0,108840.0,0.94685446]
[1751613664896,0.313,108850.0,108840.0,0.93685446]
[1751613665398,0.383,108850.0,108840.0,0.94685446]
[1751613665901,0.5666766,108850.0,108840.0,0.6768239]
[1751613666097,0.5666766,108850.0,108840.0,0.3160239]
[1751613666491,0.5666766,108850.0,108840.0,0.33361378]
[1751613666694,0.5666766,108850.0,108840.0,0.3429276]
[1751613667704,0.5666766,108850.0,108840.0,0.40261657]
[1751613667905,0.5666766,108850.0,108840.0,0.43341657]
[1751613668106,0.5666766,108850.0,108840.0,0.37341657]
[1751613668307,0.5666766,108850.0,108840.0,0.36410275]
[1751613668606,0.5666766,108850.0,108840.0,0.42410275]
[1751613669606,0.5666766,108850.0,108840.0,0.36410275]
[1751613669801,0.5666766,108850.0,108840.0,0.43410275]
[1751613670009,0.5666766,108850.0,108840.0,1.05473696]
[1751613670010,0.5666765,108850.0,108840.0,1.05473696]
[1751613670308,0.5666765,108850.0,108840.0,0.98473696]
[1751613670503,0.5666765,108850.0,108840.0,1.05473696]
[1751613670700,0.5666765,108850.0,108840.0,0.99473696]
[1751613670896,0.5666765,108850.0,108840.0,0.98473696]
[1751613671100,0.5666765,108850.0,108840.0,0.74402874]
[1751613671411,0.1866765,108850.0,108840.0,0.95481097]
[1751613671605,0.5366765,108850.0,108840.0,0.98631097]
[1751613671907,0.1866765,108850.0,108840.0,0.99631097]
[1751613672106,0.5266765,108850.0,108840.0,0.99631097]
[1751613672306,0.5266765,108850.0,108840.0,1.03566641]
[1751613672609,0.5266765,108850.0,108840.0,1.02198033]
[1751613673108,0.5266765,108850.0,108840.0,1.03561317]
[1751613673611,0.5266765,108850.0,108840.0,1.03531017]
[1751613674115,0.5266765,108850.0,108840.0,1.02595473]
[1751613674910,0.5266765,108850.0,108840.0,0.77524651]
[1751613675109,0.5266765,108850.0,108840.0,1.02595473]
[1751613676212,0.5590765,108850.0,108840.0,1.02595473]
[1751613676711,1.20128472,108850.0,108840.0,0.26964651]
[1751613677110,1.20128472,108850.0,108840.0,0.26990527]
[1751613677711,0.9505765,108850.0,108840.0,0.26990527]
[1751613678008,1.20128472,108850.0,108840.0,0.26990527]
[1751613679013,2.06192472,108850.0,108840.0,0.26990527]
[1751613680213,2.06192472,108850.0,108840.0,0.21487188]
[1751613681309,2.06192472,108850.0,108840.0,0.22487188]
[1751613681911,1.8112165,108850.0,108840.0,0.22487188]
[1751613682313,1.8112165,108850.0,108840.0,0.19732624]
[1751613682505,2.06192472,108850.0,108840.0,0.19732624]
[1751613687616,2.06192472,108850.0,108840.0,0.20732624]
[1751613687817,1.8112165,108850.0,108840.0,0.20732624]
[1751613688914,0.5897765,108850.0,108840.0,0.20732624]
[1751613689112,1.4518165,108850.0,108840.0,0.20732624]
[1751613689417,0.5897765,108850.0,108840.0,0.45803446]
[1751613689615,1.4511765,108850.0,108840.0,0.19732624]
[1751613689909,1.4511765,108850.0,108840.0,0.25732624]
[1751613690217,1.4511765,108850.0,108840.0,0.19732624]
[1751613691016,1.4511765,108850.0,108840.0,0.24732624]
[1751613691410,0.5897765,108850.0,108840.0,0.60812624]
[1751613691716,0.5897765,108850.0,108840.0,0.85883446]
[1751613692618,0.5897765,108850.0,108840.0,0.49803446]
[1751613693118,0.5897765,108850.0,108840.0,0.44803446]
[1751613693319,0.5897765,108850.0,108840.0,0.49803446]
[1751613694620,0.5897765,108850.0,108840.0,0.85883446]
[1751613694825,0.5897765,108850.0,108840.0,0.84520162]
[1751613696216,0.5897765,108850.0,108840.0,0.80520162]
[1751613697321,0.3754,108850.0,108840.0,0.81520162]
[1751613697523,0.333,108850.0,108840.0,1.38874662]
[1751613697719,0.003,108850.0,108840.0,1.38874662]
[1751613698426,0.003,108850.0,108840.0,1.1380384]
[1751613698624,0.07363045,108870.0,108860.0,0.1836597]
[1751613698820,0.79507248,108880.0,108870.0,0.1836428]
[1751613699119,0.02140488,108880.0,108870.0,1.06515102]
[1751613699319,0.002,108880.0,108870.0,1.37835924]
[1751613699520,0.002,108880.0,108870.0,1.12765102]
[1751613700124,0.004,108880.0,108870.0,1.12765102]
[1751613700422,0.004,108880.0,108870.0,1.13703376]
[1751613701720,0.008,108880.0,108870.0,1.13703376]
[1751613703527,0.008,108880.0,108870.0,1.15417792]
[1751613707023,0.008,108880.0,108870.0,0.9034697]
[1751613707223,0.008,108880.0,108870.0,0.96417792]
[1751613707527,0.008,108880.0,108870.0,1.16417792]
[1751613708231,0.008,108880.0,108870.0,0.88417792]
[1751613708428,0.008,108880.0,108870.0,1.15417792]
[1751613708625,0.378,108880.0,108870.0,0.97417792]
[1751613709026,0.368,108880.0,108870.0,0.97417792]
[1751613709430,0.008,108880.0,108870.0,0.97417792]
[1751613709629,0.368,108880.0,108870.0,0.97417792]
[1751613709928,0.008,108880.0,108870.0,0.97417792]
[1751613711134,0.1916259,108880.0,108870.0,0.96479518]
[1751613711329,0.5016259,108880.0,108870.0,0.96479518]
[1751613711633,0.1916259,108880.0,108870.0,0.97400521]
[1751613712030,0.008,108880.0,108870.0,0.97400521]
[1751613713931,0.1916259,108880.0,108870.0,0.97400521]
[1751613714231,0.5116259,108880.0,108870.0,0.97400521]
[1751613714524,0.1916259,108880.0,108870.0,0.97400521]
[1751613714733,0.5616259,108880.0,108870.0,0.97400521]
[1751613715232,0.75233412,108880.0,108870.0,0.71408696]
[1751613715531,0.81673412,108880.0,108870.0,1.15042696]
[1751613716727,0.5660259,108880.0,108870.0,1.15042696]
[1751613723031,0.5660259,108880.0,108870.0,1.06042696]
[1751613723330,0.5660259,108880.0,108870.0,1.97193518]
[1751613723737,0.5660259,108880.0,108870.0,2.00323518]
[1751613723926,0.5660259,108880.0,108870.0,1.75252696]
[1751613724129,0.5660259,108880.0,108870.0,2.00323518]
[1751613725140,0.5660259,108880.0,108870.0,1.64243518]
[1751613726038,0.5660259,108880.0,108870.0,0.53208696]
[1751613726234,0.5660259,108880.0,108870.0,1.16064696]
[1751613726435,0.5660259,108880.0,108870.0,1.41135518]
[1751613726736,0.5660259,108880.0,108870.0,1.77215518]
[1751613727239,0.5660259,108880.0,108870.0,0.89645102]
[1751613727442,0.5660259,108880.0,108870.0,1.82802181]
[1751613730048,0.5660259,108880.0,108870.0,2.04802181]
[1751613731242,0.5660259,108880.0,108870.0,1.18954181]
[1751613731643,0.5660259,108880.0,108870.0,2.04718181]
[1751613732246,0.5660259,108880.0,108870.0,1.68638181]
[1751613732446,0.5660259,108880.0,108870.0,2.08038181]
[1751613732847,0.3824,108880.0,108870.0,2.08038181]
[1751613733041,0.5660259,108880.0,108870.0,2.08038181]
[1751613733644,0.5660259,108880.0,108870.0,1.86038181]
[1751613738255,0.5660259,108880.0,108870.0,1.60967359]
[1751613738457,0.5660259,108880.0,108870.0,1.86038181]
[1751613738652,0.3824,108880.0,108870.0,2.07038181]
[1751613738853,0.566026,108880.0,108870.0,2.07038181]
[1751613739753,0.534426,108880.0,108870.0,2.07038181]
[1751613746467,0.534426,108880.0,108870.0,1.81967359]
[1751613746770,0.534426,108880.0,108870.0,2.07038181]
[1751613747377,0.534426,108880.0,108870.0,1.70958181]
[1751613747576,0.534426,108880.0,108870.0,2.07038181]
[1751613748673,0.534426,108880.0,108870.0,1.81967359]
[1751613748868,0.534426,108880.0,108870.0,1.85038181]
[1751613749475,0.566926,108880.0,108870.0,1.85038181]
[1751613749876,0.81751416,108880.0,108870.0,1.85026175]
[1751613750678,1.06810232,108880.0,108870.0,0.68203359]
[1751613750973,1.43798575,108880.0,108860.0,0.43992357]
[1751613751169,1.14181912,108870.0,108860.0,0.30303519]
[1751613751371,1.45181912,108870.0,108860.0,0.25712399]
[1751613751576,1.20123096,108870.0,108860.0,0.25712399]
[1751613751773,1.2429457,108870.0,108860.0,0.183646]
[1751613753871,1.2374546,108860.0,108850.0,0.2295819]
[1751613754072,1.2384546,108860.0,108850.0,0.2295819]
[1751613754274,1.2404546,108860.0,108850.0,0.2305819]
[1751613754475,0.8796546,108860.0,108850.0,0.2305819]
[1751613754675,0.6289597,108860.0,108850.0,0.2305819]
[1751613757372,1.2404546,108860.0,108850.0,0.2305819]
[1751613759976,0.9897597,108860.0,108850.0,0.2305819]
[1751613760172,1.2404546,108860.0,108850.0,0.2305819]
[1751613764988,2.0939346,108860.0,108850.0,0.2305819]
[1751613770289,1.4824397,108860.0,108850.0,0.4812768]
[1751613771988,0.6289597,108860.0,108850.0,0.4812768]
[1751613772178,0.6289597,108860.0,108850.0,0.5135768]
[1751613777797,0.87963214,108860.0,108850.0,0.51355434]
[1751613779789,0.6289597,108860.0,108850.0,0.51355434]
[1751613779987,0.87963214,108860.0,108850.0,0.51355434]
[1751613781891,0.5666597,108860.0,108850.0,0.59355434]
[1751613782084,0.5666597,108860.0,108850.0,0.87742678]
[1751613782287,0.20938779,108860.0,108850.0,1.08742678]
[1751613782500,0.1866597,108860.0,108850.0,0.90999841]
[1751613782794,0.003,108860.0,108850.0,1.52147085]
[1751613783796,0.003,108860.0,108850.0,1.27075689]
[1751613784497,0.1866597,108860.0,108850.0,1.27075689]
[1751613785396,0.003,108860.0,108850.0,1.27075689]
[1751613787189,0.003,108860.0,108850.0,1.87088597]
[1751613787395,0.003,108860.0,108850.0,2.12151689]
[1751613787698,0.003,108860.0,108850.0,2.11151689]
[1751613791792,0.1866597,108860.0,108850.0,2.11151689]
[1751613792301,0.003,108860.0,108850.0,2.11151689]
[1751613793898,0.0189712,108870.0,108860.0,0.1836597]
[1751613794102,0.0189712,108870.0,108860.0,1.30031212]
[1751613794300,0.002,108880.0,108870.0,0.1836428]
[1751613794495,0.382,108880.0,108870.0,1.10867372]
[1751613794697,0.565626,108880.0,108870.0,1.16373168]
[1751613795105,0.382,108880.0,108870.0,1.16373168]
[1751613795303,0.565626,108880.0,108870.0,1.16373168]
[1751613796206,0.45549017,108880.0,108870.0,1.16373168]
[1751613796505,0.64011617,108880.0,108870.0,2.01557168]
[1751613798107,0.64311617,108880.0,108870.0,1.77574925]
[1751613798408,0.64311617,108880.0,108870.0,1.83574925]
[1751613798802,0.45949017,108880.0,108870.0,1.58511833]
[1751613799003,0.45949017,108880.0,108870.0,1.83574925]
[1751613799511,0.006,108880.0,108870.0,2.28638017]
[1751613799804,0.006,108880.0,108870.0,1.98069129]
[1751613800608,0.006,108880.0,108870.0,2.05413522]
[1751613802211,0.006,108880.0,108870.0,1.98069129]
[1751613804314,0.006,108880.0,108870.0,2.23132221]
[1751613804516,0.006,108880.0,108870.0,1.98069129]
[1751613805722,0.026,108880.0,108870.0,1.98069129]
[1751613806218,0.4232,108900.0,108890.0,0.1836093]
[1751613806414,0.4752594,108910.0,108900.0,0.1835925]
[1751613806614,0.8452594,108910.0,108900.0,0.43422342]
[1751613807220,1.028835,108910.0,108900.0,0.43422342]
[1751613807622,1.028835,108910.0,108900.0,0.1835925]
[1751613808121,0.92066592,108910.0,108900.0,0.1845925]
[1751613808518,0.4864594,108910.0,108900.0,0.1845925]
[1751613808714,0.4864594,108910.0,108900.0,0.2445925]
[1751613808915,0.4230594,108910.0,108900.0,0.88842342]
[1751613809115,0.002,108910.0,108900.0,1.14352342]
[1751613809822,0.006,108910.0,108900.0,1.14452342]
[1751613810216,0.356,108910.0,108900.0,1.14452342]
[1751613810417,0.006,108910.0,108900.0,1.14452342]
[1751613815227,0.366,108910.0,108900.0,1.14452342]
[1751613816320,0.006,108910.0,108900.0,1.14452342]
[1751613817028,0.346,108910.0,108900.0,1.14452342]
[1751613817223,0.006,108910.0,108900.0,1.14452342]
[1751613817823,0.316,108910.0,108900.0,0.89452342]
[1751613818024,0.5695755,108910.0,108900.0,1.5734525]
[1751613818228,0.4175,108910.0,108900.0,1.82408342]
[1751613819332,0.6010755,108910.0,108900.0,1.72658342]
[1751613819525,0.6313755,108910.0,108900.0,0.87702342]
[1751613819725,0.6313755,108910.0,108900.0,1.72658342]
[1751613820020,0.6313755,108910.0,108900.0,1.95658342]
[1751613820021,0.2513755,108910.0,108900.0,1.95658342]
[1751613820226,0.5713755,108910.0,108900.0,1.70658342]
[1751613820527,0.5713755,108910.0,108900.0,1.72399999]
[1751613820729,0.5713755,108910.0,108900.0,1.97399999]
[1751613821030,0.5713755,108910.0,108900.0,1.72399999]
[1751613822331,0.59408872,108910.0,108900.0,1.72399999]
[1751613823927,0.59408872,108910.0,108900.0,1.72453047]
[1751613824627,0.86389386,108910.0,108900.0,0.26333955]
[1751613824932,0.86389386,108910.0,108900.0,1.05353955]
[1751613825630,0.86389386,108910.0,108900.0,0.20333955]
[1751613827027,0.84118064,108910.0,108900.0,0.20333955]
[1751613832940,0.86394446,108910.0,108900.0,0.20333955]
[1751613834038,0.61331354,108910.0,108900.0,0.20333955]
[1751613837830,0.86378584,108910.0,108900.0,0.45381185]